fUSD/lending_fUSD_20260111
["ID","MTS","AMOUNT","RATE_DAILY","PERIOD"]
[401387941,1768173035215,-150.0,0.000162,2]
[401387942,1768173035225,-150.0,0.000162,2]
[401387943,1768173035234,-150.0,0.000162,2]
[401387944,1768173035244,-150.0,0.000162,2]
[401387945,1768173035254,-150.0,0.000162,2]
[401387946,1768173035264,-150.0,0.000162,2]
[401387947,1768173035273,-150.0,0.000162,2]
[401387948,1768173035282,-150.0,0.000162,2]
[401387949,1768173035291,-496.45188591,0.000162,2]
[401387950,1768173035301,-496.45188591,0.00016218,2]
[401387951,1768173035310,-496.45188591,0.00016236,2]
[401387952,1768173035319,-3413.54,0.00016247,2]
[401387953,1768173035328,-496.45188591,0.00016255,2]
[401387954,1768173035337,-166.66,0.00016258,2]
[401387955,1768173035346,-496.45188591,0.00016273,2]
[401387956,1768173035355,-150.0,0.0001629,2]
[401387957,1768173035365,-496.45188591,0.00016291,2]
[401387958,1768173035375,-150.0,0.00016306,2]
[401387959,1768173035385,-496.45188591,0.00016309,2]
[401387960,1768173035394,-587.0,0.00016311,2]
[401387961,1768173035405,-587.0,0.00016311,2]
[401387962,1768173035415,-150.0,0.00016312,2]
[401387963,1768173035425,-496.45188591,0.00016327,2]
[401387964,1768173035437,-150.0,0.00016329,2]
[401387965,1768173035446,-150.0,0.00016338,2]
[401387966,1768173035455,-496.45188591,0.00016345,2]
[401387967,1768173035464,-150.0,0.0001635,2]
[401387968,1768173035473,-900.0,0.00016356,2]
[401387969,1768173035482,-500.0,0.00016356,2]
[401387970,1768173035491,-496.45188591,0.00016364,2]
[401387971,1768173035499,-620.17204619,0.0001637,2]
[401387972,1768173035508,-150.0,0.0001638,2]
[401387973,1768173035517,-150.0,0.0001638,2]
[401387974,1768173035526,-496.45188591,0.00016382,2]
[401387975,1768173035535,-500.0,0.00016384,2]
[401387976,1768173035543,-496.45188591,0.000164,2]
[401387977,1768173035552,-322.70592568,0.00016404,2]
[401387978,1768173035562,-500.0,0.00016404,2]
[401387979,1768173035571,-163.05,0.00016408,2]
[401387980,1768173035580,-150.0,0.00016412,2]
[401387981,1768173035589,-496.45188591,0.00016418,2]
[401387982,1768173035598,-200.0,0.00016419,2]
[401387983,1768173035607,-150.0,0.00016425,2]
[401387984,1768173035617,-2351.0,0.0001643,2]
[401387985,1768173035626,-496.45188591,0.00016436,2]
[401387986,1768173035636,-209.97018371,0.00016438,2]
[401387987,1768173035646,-1572.19,0.00016438,2]
[401387988,1768173035655,-19070.33,0.00016438,2]
[401387989,1768173035664,-600.0,0.00016438,2]
[401387990,1768173035673,-800.0,0.00016438,2]
[401387991,1768173035682,-151.0,0.00016438,2]
[401387992,1768173035691,-164.94,0.0001644,2]
[401387993,1768173035701,-496.45188591,0.00016455,2]
[401387994,1768173035710,-150.0,0.00016457,2]
[401387995,1768173035719,-150.0,0.00016457,2]
[401387996,1768173035729,-10042.0,0.0001646,2]
[401387997,1768173035738,-14929.37711932,0.0001646,2]
[401387998,1768173035747,-10941.75338581,0.00016461,2]
[401387999,1768173035756,-150.0,0.0001647,2]
[401388000,1768173035766,-496.45188591,0.00016473,2]
[401388001,1768173035775,-150.0,0.00016477,2]
[401388002,1768173035784,-2995.96,0.00016481,2]
[401388003,1768173035794,-580.65,0.00016484,2]
[401388004,1768173035803,-496.45188591,0.00016491,2]
[401388005,1768173035812,-1000.0,0.00016493,2]
[401388006,1768173035822,-150.0,0.000165,2]
[401388007,1768173035832,-496.45188591,0.00016509,2]
[401388008,1768173035841,-1000.0,0.00016515,2]
[401388009,1768173035851,-150.0,0.00016518,2]
[401388010,1768173035864,-500.0,0.00016526,2]
[401388011,1768173035876,-496.45188591,0.00016527,2]
[401388012,1768173035885,-150.0,0.00016537,2]
[401388013,1768173035895,-496.45188591,0.00016545,2]
[401388014,1768173035904,-150.0,0.0001656,2]
[401388015,1768173035913,-150.0,0.0001656,2]
[401388016,1768173035922,-150.0,0.0001656,2]
[401388017,1768173035934,-496.45188591,0.00016564,2]
[401388018,1768173035943,-496.45188591,0.00016582,2]
[401388019,1768173035952,-150.0,0.00016586,2]
[401388020,1768173035961,-496.45188591,0.000166,2]
[401388021,1768173035971,-150.0,0.00016615,2]
[401388022,1768173035980,-496.45188591,0.00016618,2]
[401388023,1768173035989,-150.0,0.00016624,2]
[401388024,1768173035998,-496.45188591,0.00016636,2]
[401388025,1768173036007,-150.0,0.0001665,2]
[401388026,1768173036016,-150.0,0.0001665,2]
[401388027,1768173036025,-150.0,0.0001665,2]
[401388028,1768173036034,-150.0,0.0001665,2]
[401388029,1768173036044,-496.45188591,0.00016655,2]
[401388030,1768173036054,-189.32036367,0.00016665,2]
[401388031,1768173036063,-186.19276291,0.00016666,2]
[401388032,1768173036072,-496.45188591,0.00016673,2]
[401388033,1768173036082,-496.45188591,0.00016691,2]
[401388034,1768173036091,-3413.54,0.00016701,2]
[401388035,1768173036101,-496.45188591,0.00016709,2]
[401388036,1768173036110,-1572.20539638,0.00016712,2]
[401388037,1768173036121,-574.12855637,0.00016712,2]
[401388038,1768173036131,-150.0,0.00016714,2]
[401388039,1768173036141,-150.0,0.00016714,2]
[401388040,1768173036150,-496.45188591,0.00016727,2]
[401388041,1768173036159,-150.0,0.00016729,2]
[401388042,1768173036168,-150.0,0.0001674,2]
[401388043,1768173036178,-150.0,0.0001674,2]
[401388044,1768173036187,-496.45188591,0.00016745,2]
[401388045,1768173036196,-150.0,0.00016754,2]
[401388046,1768173036205,-150.0,0.00016762,2]
[401388047,1768173036214,-496.45188591,0.00016764,2]
[401388048,1768173036223,-496.45188591,0.00016782,2]
[401388049,1768173036232,-150.0,0.000168,2]
[401388050,1768173036242,-496.45188591,0.000168,2]
[401388051,1768173036251,-496.45188591,0.00016818,2]
[401388052,1768173036261,-150.0,0.0001683,2]
[401388053,1768173036270,-150.0,0.00016835,2]
[401388054,1768173036279,-496.45188591,0.00016836,2]
[401388055,1768173036288,-150.0,0.00016843,2]
[401388056,1768173036298,-496.45188591,0.00016855,2]
[401388057,1768173036308,-496.45188591,0.00016873,2]
[401388058,1768173036318,-150.0,0.00016875,2]
[401388059,1768173036328,-496.45188591,0.00016891,2]
[401388060,1768173036338,-150.0,0.00016892,2]
[401388061,1768173036347,-14000.0,0.000169,6]
[401388062,1768173036356,-496.45188591,0.00016909,2]
[401388063,1768173036365,-150.0,0.0001692,2]
[401388064,1768173036375,-150.0,0.0001692,2]
[401388065,1768173036385,-150.0,0.0001692,2]
[401388066,1768173036394,-496.45188591,0.00016927,2]
[401388067,1768173036403,-14929.37711932,0.0001694,2]
[401388068,1768173036414,-10941.75338581,0.0001694,2]
[401388069,1768173036423,-150.0,0.00016941,2]
[401388070,1768173036433,-496.45188591,0.00016945,2]
[401388071,1768173036442,-150.0,0.0001695,2]
[401388072,1768173036453,-496.45188591,0.00016964,2]
[401388073,1768173036462,-150.0,0.00016971,2]
[401388074,1768173036472,-150.0,0.00016971,2]
[401388075,1768173036482,-496.45188591,0.00016982,2]
[401388076,1768173036492,-334.5472959,0.00016985,2]
[401388077,1768173036501,-642.94,0.00016985,2]
[401388078,1768173036510,-150.0,0.00016987,2]
[401388079,1768173036519,-496.45188591,0.00017,2]
[401388080,1768173036528,-1089.8409,0.00017,2]
[401388081,1768173036538,-1037.8667,0.00017,2]
[401388082,1768173036547,-150.0,0.0001701,2]
[401388083,1768173036556,-496.45188591,0.00017018,2]
[401388084,1768173036565,-4071.0,0.00017027,2]
[401388085,1768173036574,-150.0,0.00017031,2]
[401388086,1768173036584,-496.45188591,0.00017036,2]
[401388087,1768173036593,-834.0,0.0001704,2]
[401388088,1768173036602,-150.0,0.00017047,2]
[401388089,1768173036611,-496.45188591,0.00017055,2]
[401388090,1768173036622,-250.0,0.00017059,2]
[401388091,1768173036631,-166.87374433,0.00017073,2]
[401388092,1768173036640,-500.0,0.00017073,2]
[401388093,1768173036649,-173.27685075,0.00017073,2]
[401388094,1768173036658,-500.0,0.00017073,2]
[401388095,1768173036667,-540.30872116,0.00017073,2]
[401388096,1768173036676,-500.0,0.00017073,2]
[401388097,1768173036686,-500.0,0.00017073,2]
[401388098,1768173036695,-500.0,0.00017073,2]
[401388099,1768173036704,-500.0,0.00017073,2]
[401388100,1768173036713,-500.0,0.00017073,2]
[401388101,1768173036723,-500.0,0.00017073,2]
[401388102,1768173036732,-503.69857476,0.00017073,2]
[401388103,1768173036741,-500.0,0.00017073,2]
[401388104,1768173036750,-500.0,0.00017073,2]
[401388105,1768173036759,-500.0,0.00017073,2]
[401388106,1768173036768,-500.0,0.00017073,2]
[401388107,1768173036777,-500.0,0.00017073,2]
[401388108,1768173036786,-169.14530325,0.00017073,2]
[401388109,1768173036795,-500.0,0.00017073,2]
[401388110,1768173036804,-486.742849,0.00017073,2]
[401388111,1768173036814,-163.38938361,0.00017073,2]
[401388112,1768173036823,-500.0,0.00017073,2]
[401388113,1768173036832,-501.77392466,0.00017073,2]
[401388114,1768173036841,-500.0,0.00017073,2]
[401388115,1768173036851,-162.5649796,0.00017073,2]
[401388116,1768173036862,-500.0,0.00017073,2]
[401388117,1768173036872,-500.0,0.00017073,2]
[401388118,1768173036881,-500.0,0.00017073,2]
[401388119,1768173036891,-500.0,0.00017073,2]
[401388120,1768173036901,-500.0,0.00017073,2]
[401388121,1768173036910,-500.0,0.00017073,2]
[401388122,1768173036919,-500.0,0.00017073,2]
[401388123,1768173036929,-500.0,0.00017073,2]
[401388124,1768173036938,-500.15222599,0.00017073,2]
[401388125,1768173036947,-500.99700202,0.00017073,2]
[401388126,1768173036956,-500.0,0.00017073,2]
[401388127,1768173036965,-500.0,0.00017073,2]
[401388128,1768173036974,-500.0,0.00017073,2]
[401388129,1768173036984,-500.0,0.00017073,2]
[401388130,1768173036993,-500.0,0.00017073,2]
[401388131,1768173037003,-500.0890643,0.00017073,2]
[401388132,1768173037012,-496.45188591,0.00017073,2]
[401388133,1768173037022,-93787.73345681,0.00017082,2]
[401388134,1768173037031,-5888.0,0.00017089,2]
[401388135,1768173037040,-496.45188591,0.00017091,2]
[401388136,1768173037049,-150.0,0.000171,2]
[401388137,1768173037058,-150.0,0.000171,2]
[401388138,1768173037067,-150.0,0.000171,2]
[401388139,1768173037076,-150.0,0.000171,2]
[401388140,1768173037085,-150.0,0.000171,2]
[401388141,1768173037095,-150.0,0.000171,2]
[401388142,1768173037105,-496.45188591,0.00017109,2]
[401388143,1768173037114,-1000.0,0.00017112,2]
[401388144,1768173037124,-163.05,0.00017112,2]
[401388145,1768173037134,-496.45188591,0.00017127,2]
[401388146,1768173037144,-496.45188591,0.00017145,2]
[401388147,1768173037153,-150.0,0.00017153,2]
[401388148,1768173037163,-3413.54,0.00017155,2]
[401388149,1768173037173,-496.45188591,0.00017164,2]
[401388150,1768173037182,-4071.0,0.00017165,2]
[401388151,1768173037191,-150.0,0.00017169,2]
[401388152,1768173037201,-285.0,0.00017173,2]
[401388153,1768173037210,-2171.6,0.00017173,2]
[401388154,1768173037220,-285.0,0.00017176,2]
[401388155,1768173037230,-496.45188591,0.00017182,2]
[401388156,1768173037239,-150.0,0.0001719,2]
[401388157,1768173037248,-496.45188591,0.000172,2]
[401388158,1768173037258,-21100.0,0.000172,6]
[401388159,1768173037268,-623.0,0.00017204,2]
[401388160,1768173037277,-150.0,0.00017212,2]
[401388161,1768173037287,-285.0,0.00017214,2]
[401388162,1768173037297,-496.45188591,0.00017218,2]
[401388163,1768173037307,-150.0,0.00017229,2]
[401388164,1768173037317,-150.0,0.00017229,2]
[401388165,1768173037327,-496.45188591,0.00017236,2]
[401388166,1768173037337,-1000.0,0.00017245,2]
[401388167,1768173037348,-2171.6,0.00017248,2]
[401388168,1768173037359,-285.0,0.00017249,2]
[401388169,1768173037370,-150.0,0.0001725,2]
[401388170,1768173037380,-496.45188591,0.00017255,2]
[401388171,1768173037390,-150.0,0.00017259,2]
[401388172,1768173037400,-595.37131296,0.0001726,2]
[401388173,1768173037411,-1743.0,0.00017263,2]
[401388174,1768173037420,-1000.0,0.00017272,2]
[401388175,1768173037430,-496.45188591,0.00017273,2]
[401388176,1768173037440,-150.0,0.0001728,2]
[401388177,1768173037450,-150.0,0.0001728,2]
[401388178,1768173037459,-150.0,0.0001728,2]
[401388179,1768173037469,-189.32036367,0.00017283,2]
[401388180,1768173037479,-186.19276291,0.00017283,2]
[401388181,1768173037488,-1743.0,0.0001729,2]
[401388182,1768173037499,-496.45188591,0.00017291,2]
[401388183,1768173037510,-500.0,0.00017299,2]
[401388184,1768173037519,-150.0,0.000173,2]
[401388185,1768173037529,-28100.0,0.000173,6]
[401388186,1768173037541,-2995.96,0.00017305,2]
[401388187,1768173037550,-150.0,0.00017308,2]
[401388188,1768173037559,-496.45188591,0.00017309,2]
[401388189,1768173037570,-1000.0,0.00017312,2]
[401388190,1768173037579,-1000.0,0.00017315,2]
[401388191,1768173037588,-500.0,0.00017315,2]
[401388192,1768173037598,-2171.6,0.00017323,2]
[401388193,1768173037607,-150.0,0.00017325,2]
[401388194,1768173037618,-496.45188591,0.00017327,2]
[401388195,1768173037627,-1000.0,0.00017337,2]
[401388196,1768173037637,-1743.0,0.00017339,2]
[401388197,1768173037646,-496.45188591,0.00017345,2]
[401388198,1768173037656,-150.0,0.00017357,2]
[401388199,1768173037665,-496.45188591,0.00017364,2]
[401388200,1768173037675,-150.0,0.00017365,2]
[401388201,1768173037685,-150.0,0.0001737,2]
[401388202,1768173037697,-496.45188591,0.00017382,2]
[401388203,1768173037709,-1000.0,0.00017397,2]
[401388204,1768173037719,-2171.6,0.00017399,2]
[401388205,1768173037731,-150.0,0.000174,2]
[401388206,1768173037743,-496.45188591,0.000174,2]
[401388207,1768173037753,-35200.0,0.000174,6]
[401388208,1768173037762,-158.9254365,0.00017408,2]
[401388209,1768173037772,-496.45188591,0.00017418,2]
[401388210,1768173037781,-14929.37711932,0.0001742,2]
[401388211,1768173037791,-10941.75338581,0.0001742,2]
[401388212,1768173037801,-285.0,0.00017421,2]
[401388213,1768173037811,-496.66359695,0.00017425,2]
[401388214,1768173037820,-590.06318864,0.00017425,2]
[401388215,1768173037830,-496.45188591,0.00017436,2]
[401388216,1768173037839,-150.0,0.00017437,2]
[401388217,1768173037851,-150.0,0.00017446,2]
[401388218,1768173037863,-1900.0,0.00017452,7]
[401388219,1768173037875,-496.45188591,0.00017455,2]
[401388220,1768173037884,-150.0,0.0001746,2]
[401388221,1768173037895,-150.0,0.0001746,2]
[401388222,1768173037906,-150.0,0.00017471,2]
[401388223,1768173037916,-496.45188591,0.00017473,2]
[401388224,1768173037925,-2171.6,0.00017474,2]
[401388225,1768173037936,-500.0,0.00017477,2]
[401388226,1768173037945,-150.0,0.00017486,2]
[401388227,1768173037955,-150.0,0.00017486,2]
[401388228,1768173037964,-496.45188591,0.00017491,2]
[401388229,1768173037974,-145387.2918854,0.00017492,2]
[401388230,1768173037992,-70080.33839609,0.00017492,2]
[401388231,1768173038001,-1000.0,0.00017497,2]
[401388232,1768173038011,-500.0,0.00017499,2]
[401388233,1768173038020,-2000.0,0.000175,2]
[401388234,1768173038034,-7000.0,0.000175,6]
[401388236,1768173038043,-285.0,0.00017506,2]
[401388237,1768173038052,-20662.98708834,0.00017507,2]
[401388238,1768173038063,-7353.01291166,0.00017507,2]
[401388239,1768173038072,-496.45188591,0.00017509,2]
[401388240,1768173038082,-150.0,0.0001752,2]
[401388241,1768173038092,-590.06318863,0.0001752,2]
[401388242,1768173038101,-261.83932266,0.00017524,2]
[401388243,1768173038111,-1000.0,0.00017524,2]
[401388244,1768173038122,-44309.00543256,0.00017525,2]
[401388245,1768173038133,-81138.89979267,0.00017525,2]
[401388246,1768173038152,-969.61981694,0.00017525,2]
[401388331,1768173039775,-151.0,0.00015364,2]
[401388332,1768173039785,-151.0,0.00015364,2]
[401388333,1768173039795,-52.0347142,0.00015364,2]
[401388334,1768173039807,-99.7152858,0.00015364,2]
[401388335,1768173039816,-900.2847142,0.00015729,2]
[401388336,1768173039828,-200.7152858,0.00015729,2]
[401388337,1768173039838,-26867.0847142,0.00017525,2]
[401388338,1768173039850,-311.94814977,0.00017525,2]
[401388339,1768173039864,-1400.95162299,0.00017525,2]
[401388340,1768173039877,-1263.06762841,0.00017525,2]
[401388341,1768173039888,-1549.5736427,0.00017525,2]
[401388342,1768173039901,-5718.31894566,0.00017525,2]
[401388343,1768173039912,-619.52163388,0.00017525,2]
[401388347,1768173040286,-1101.0,0.00016515,2]
[401388348,1768173040296,-186354.85259092,0.00017525,2]
[401388349,1768173040306,-495014.6249189,0.00017525,2]
[401388350,1768173040315,-640538.4942,0.00017525,2]
[401388351,1768173040325,-716.799137,0.00017525,2]
[401388352,1768173040335,-716.799137,0.00017525,2]
[401388353,1768173040344,-716.799137,0.00017525,2]
[401388354,1768173040354,-716.799137,0.00017525,2]
[401388355,1768173040364,-929.163466,0.00017525,2]
[401388356,1768173040375,-2061.870797,0.00017525,2]
[401388357,1768173040384,-2061.870797,0.00017525,2]
[401388358,1768173040394,-1026.274913,0.00017525,2]
[401388359,1768173040403,-929.163466,0.00017525,2]
[401388360,1768173040413,-1026.274913,0.00017525,2]
[401388361,1768173040423,-2061.870797,0.00017525,2]
[401388362,1768173040433,-387.144329,0.00017525,2]
[401388363,1768173040442,-929.163466,0.00017525,2]
[401388364,1768173040452,-1026.274913,0.00017525,2]
[401388365,1768173040462,-2061.870797,0.00017525,2]
[401388366,1768173040472,-790.895146,0.00017525,2]
[401388367,1768173040482,-387.144329,0.00017525,2]
[401388368,1768173040492,-929.163466,0.00017525,2]
[401388369,1768173040502,-1026.274913,0.00017525,2]
[401388370,1768173040511,-151.0,0.00017525,2]
[401388371,1768173040521,-790.895146,0.00017525,2]
[401388372,1768173040531,-387.144329,0.00017525,2]
[401388373,1768173040540,-151.0,0.00017525,2]
[401388374,1768173040550,-790.895146,0.00017525,2]
[401388375,1768173040559,-387.144329,0.00017525,2]
[401388376,1768173040568,-790.895146,0.00017525,2]
[401388377,1768173040578,-296.653944,0.00017525,2]
[401388378,1768173040587,-296.653944,0.00017525,2]
[401388379,1768173040597,-151.0,0.00017525,2]
[401388380,1768173040606,-347.443825,0.00017525,2]
[401388381,1768173040616,-690.815863,0.00017525,2]
[401388382,1768173040625,-296.653944,0.00017525,2]
[401388383,1768173040634,-231.340004,0.00017525,2]
[401388384,1768173040644,-347.443825,0.00017525,2]
[401388385,1768173040654,-151.0,0.00017525,2]
[401388386,1768173040664,-690.815863,0.00017525,2]
[401388387,1768173040674,-296.653944,0.00017525,2]
[401388389,1768173040683,-347.443825,0.00017525,2]
[401388390,1768173040692,-690.815863,0.00017525,2]
[401388391,1768173040702,-347.443825,0.00017525,2]
[401388392,1768173040712,-1501.74032,0.00017525,2]
[401388393,1768173040723,-690.815863,0.00017525,2]
[401388394,1768173040732,-151.0,0.00017525,2]
[401388395,1768173040742,-1501.74032,0.00017525,2]
[401388396,1768173040751,-252.433945,0.00017525,2]
[401388397,1768173040761,-252.711601,0.00017525,2]
[401388398,1768173040770,-1501.74032,0.00017525,2]
[401388399,1768173040779,-252.433945,0.00017525,2]
[401388400,1768173040789,-1501.74032,0.00017525,2]
[401388401,1768173040798,-252.433945,0.00017525,2]
[401388402,1768173040808,-151.0,0.00017525,2]
[401388403,1768173040817,-252.433945,0.00017525,2]
[401388404,1768173040827,-1060.855532,0.00017525,2]
[401388405,1768173040837,-1060.855532,0.00017525,2]
[401388406,1768173040847,-334.294396,0.00017525,2]
[401388407,1768173040857,-1060.855532,0.00017525,2]
[401388408,1768173040869,-334.294396,0.00017525,2]
[401388409,1768173040880,-1060.855532,0.00017525,2]
[401388410,1768173040890,-334.294396,0.00017525,2]
[401388411,1768173040899,-334.294396,0.00017525,2]
[401388412,1768173040908,-151.0,0.00017525,2]
[401388413,1768173040918,-151.0,0.00017525,2]
[401388414,1768173040929,-151.0,0.00017525,2]
[401388415,1768173040939,-151.0,0.00017525,2]
[401388416,1768173040948,-151.0,0.00017525,2]
[401388417,1768173040958,-151.0,0.00017525,2]
[401388418,1768173040968,-151.0,0.00017525,2]
[401388419,1768173040977,-151.0,0.00017525,2]
[401388420,1768173040987,-151.0,0.00017525,2]
[401388421,1768173040997,-151.0,0.00017525,2]
[401388422,1768173041007,-151.0,0.00017525,2]
[401388423,1768173041017,-170.438842,0.00017525,2]
[401388424,1768173041028,-192.571095,0.00017525,2]
[401388425,1768173041038,-151.0,0.00017525,2]
[401388426,1768173041047,-170.438842,0.00017525,2]
[401388427,1768173041056,-151.0,0.00017525,2]
[401388428,1768173041065,-170.438842,0.00017525,2]
[401388429,1768173041075,-192.571095,0.00017525,2]
[401388430,1768173041084,-361.291573,0.00017525,2]
[401388431,1768173041095,-151.0,0.00017525,2]
[401388432,1768173041105,-170.438842,0.00017525,2]
[401388433,1768173041115,-192.571095,0.00017525,2]
[401388434,1768173041124,-151.0,0.00017525,2]
[401388435,1768173041134,-192.571095,0.00017525,2]
[401388436,1768173041143,-361.291573,0.00017525,2]
[401388437,1768173041153,-174.000186,0.00017525,2]
[401388438,1768173041162,-361.291573,0.00017525,2]
[401388439,1768173041171,-174.000186,0.00017525,2]
[401388440,1768173041181,-151.0,0.00017525,2]
[401388441,1768173041190,-573.970445,0.00017525,2]
[401388442,1768173041200,-361.291573,0.00017525,2]
[401388443,1768173041210,-174.000186,0.00017525,2]
[401388444,1768173041220,-573.970445,0.00017525,2]
[401388445,1768173041229,-573.970445,0.00017525,2]
[401388446,1768173041239,-151.0,0.00017525,2]
[401388447,1768173041249,-573.970445,0.00017525,2]
[401388448,1768173041259,-174.000186,0.00017525,2]
[401388449,1768173041268,-1965.222408,0.00017525,2]
[401388450,1768173041278,-1965.222408,0.00017525,2]
[401388451,1768173041288,-3403.244906,0.00017525,2]
[401388452,1768173041297,-1965.222408,0.00017525,2]
[401388453,1768173041307,-3403.244906,0.00017525,2]
[401388454,1768173041316,-1965.222408,0.00017525,2]
[401388455,1768173041325,-2250.851841,0.00017525,2]
[401388456,1768173041334,-3403.244906,0.00017525,2]
[401388457,1768173041343,-2250.851841,0.00017525,2]
[401388458,1768173041353,-3403.244906,0.00017525,2]
[401388459,1768173041363,-955.098773,0.00017525,2]
[401388460,1768173041373,-2250.851841,0.00017525,2]
[401388461,1768173041382,-955.098773,0.00017525,2]
[401388462,1768173041391,-2250.851841,0.00017525,2]
[401388463,1768173041401,-955.098773,0.00017525,2]
[401388464,1768173041411,-955.098773,0.00017525,2]
[401388465,1768173041420,-2068.70979,0.00017525,2]
[401388466,1768173041430,-2068.70979,0.00017525,2]
[401388467,1768173041439,-2068.70979,0.00017525,2]
[401388468,1768173041449,-2068.70979,0.00017525,2]
[401388469,1768173041458,-151.0,0.00017525,2]
[401388470,1768173041468,-151.0,0.00017525,2]
[401388471,1768173041477,-415.129108,0.00017525,2]
[401388472,1768173041486,-151.0,0.00017525,2]
[401388473,1768173041495,-415.129108,0.00017525,2]
[401388474,1768173041505,-499.566603,0.00017525,2]
[401388475,1768173041514,-151.0,0.00017525,2]
[401388476,1768173041524,-415.129108,0.00017525,2]
[401388477,1768173041533,-151.0,0.00017525,2]
[401388478,1768173041542,-499.566603,0.00017525,2]
[401388479,1768173041551,-415.129108,0.00017525,2]
[401388480,1768173041560,-499.566603,0.00017525,2]
[401388481,1768173041569,-395.895764,0.00017525,2]
[401388482,1768173041578,-499.566603,0.00017525,2]
[401388483,1768173041588,-395.895764,0.00017525,2]
[401388484,1768173041597,-200.294492,0.00017525,2]
[401388485,1768173041606,-395.895764,0.00017525,2]
[401388486,1768173041618,-455.569602,0.00017525,2]
[401388487,1768173041628,-395.895764,0.00017525,2]
[401388488,1768173041637,-151.0,0.00017525,2]
[401388489,1768173041647,-160.818495,0.00017525,2]
[401388490,1768173041657,-455.569602,0.00017525,2]
[401388491,1768173041666,-4700.883777,0.00017525,2]
[401388492,1768173041676,-151.0,0.00017525,2]
[401388493,1768173041686,-151.0,0.00017525,2]
[401388494,1768173041695,-414.496549,0.00017525,2]
[401388495,1768173041707,-4700.883777,0.00017525,2]
[401388496,1768173041718,-151.0,0.00017525,2]
[401388497,1768173041728,-151.0,0.00017525,2]
[401388498,1768173041738,-414.496549,0.00017525,2]
[401388499,1768173041747,-4700.883777,0.00017525,2]
[401388500,1768173041756,-151.0,0.00017525,2]
[401388501,1768173041766,-414.496549,0.00017525,2]
[401388502,1768173041775,-4700.883777,0.00017525,2]
[401388503,1768173041784,-151.0,0.00017525,2]
[401388504,1768173041793,-455.569602,0.00017525,2]
[401388505,1768173041802,-414.496549,0.00017525,2]
[401388506,1768173041812,-151.0,0.00017525,2]
[401388507,1768173041821,-455.569602,0.00017525,2]
[401388508,1768173041832,-151.0,0.00017525,2]
[401388509,1768173041842,-194.35489505,0.00017525,2]
[401388510,1768173041852,-1115.641433,0.00017525,2]
[401388511,1768173041865,-496.45188591,0.00017527,2]
[401388512,1768173041875,-1011.20104298,0.00017534,2]
[401388513,1768173041884,-1000.0,0.00017539,2]
[401388514,1768173041897,-496.45188591,0.00017545,2]
[401388515,1768173041910,-2171.6,0.00017549,2]
[401388516,1768173041920,-150.0,0.0001755,2]
[401388517,1768173041934,-150.0,0.0001755,2]
[401388518,1768173041945,-150.0,0.0001755,2]
[401388519,1768173041955,-150.0,0.0001755,2]
[401388520,1768173041964,-1000.0,0.00017556,2]
[401388521,1768173041974,-496.45188591,0.00017564,2]
[401388522,1768173041983,-1419.205,0.00017568,2]
[401388523,1768173041992,-624.081,0.00017568,2]
[401388524,1768173042002,-3468.0,0.00017568,2]
[401388525,1768173042011,-1283.495,0.00017568,2]
[401388526,1768173042021,-637.448,0.00017568,2]
[401388527,1768173042033,-1202.14,0.00017568,2]
[401388528,1768173042043,-916.599,0.00017568,2]
[401388529,1768173042054,-6555.0,0.00017568,2]